[Event "Titled Tuesday Blitz December 20 Early 2022"]
[White "Slovak_fighter2000"]
[Black "politeplayer"]
[WhiteElo "2466"]
[BlackElo "2244"]
[Result "1-0"]
[Round "05"]
[TimeControl "180+2"]
[Date "2022.12.20"]
[WhiteClock "0:00:01"]
[BlackClock "0:00:04"]

1. e4 {[%clk 0:02:38]}  e5 {[%clk 0:02:58]} 2. Nf3 {[%clk 0:02:38]}  Nf6 {[%clk 0:02:58]} 3. Nc3 {[%clk 0:02:37]}  Bb4 {[%clk 0:02:57]} 4. Bc4 {[%clk 0:02:30]}  Bxc3 {[%clk 0:02:51]} 5. dxc3 {[%clk 0:02:28]}  O-O {[%clk 0:02:48]} 6. Bg5 {[%clk 0:02:24]}  d6 {[%clk 0:02:48]} 7. O-O {[%clk 0:02:22]}  Bg4 {[%clk 0:02:45]} 8. h3 {[%clk 0:02:19]}  Bh5 {[%clk 0:02:42]} 9. g4 {[%clk 0:02:03]}  Bg6 {[%clk 0:02:41]} 10. Bd3 {[%clk 0:02:00]}  Nbd7 {[%clk 0:02:37]} 11. c4 {[%clk 0:01:58]}  Nc5 {[%clk 0:02:35]} 12. Nd2 {[%clk 0:01:56]}  Ne6 {[%clk 0:02:26]} 13. Bh4 {[%clk 0:01:54]}  Nf4 {[%clk 0:02:25]} 14. Kh2 {[%clk 0:01:51]}  h6 {[%clk 0:02:18]} 15. f3 {[%clk 0:01:48]}  Nxg4+ {[%clk 0:02:14]} 16. fxg4 {[%clk 0:01:44]}  Qxh4 {[%clk 0:02:13]} 17. Qf3 {[%clk 0:01:44]}  h5 {[%clk 0:01:55]} 18. Qg3 {[%clk 0:01:42]}  Qxg3+ {[%clk 0:01:38]} 19. Kxg3 {[%clk 0:01:42]}  hxg4 {[%clk 0:01:33]} 20. hxg4 {[%clk 0:01:43]}  f6 {[%clk 0:01:30]} 21. b3 {[%clk 0:01:41]}  Kf7 {[%clk 0:01:28]} 22. Nf3 {[%clk 0:01:38]}  Rh8 {[%clk 0:01:23]} 23. Rh1 {[%clk 0:01:36]}  Rxh1 {[%clk 0:01:13]} 24. Rxh1 {[%clk 0:01:35]}  a5 {[%clk 0:01:13]} 25. a4 {[%clk 0:01:34]}  b6 {[%clk 0:01:08]} 26. Nh4 {[%clk 0:01:28]}  Rh8 {[%clk 0:01:02]} 27. Rf1 {[%clk 0:01:26]}  Ne6 {[%clk 0:00:47]} 28. Rf2 {[%clk 0:01:21]}  Nc5 {[%clk 0:00:39]} 29. Re2 {[%clk 0:01:20]}  c6 {[%clk 0:00:26]} 30. Re3 {[%clk 0:01:19]}  Bh7 {[%clk 0:00:22]} 31. Nf3 {[%clk 0:01:13]}  g5 {[%clk 0:00:19]} 32. Nd2 {[%clk 0:01:05]}  Ne6 {[%clk 0:00:19]} 33. c5 {[%clk 0:00:58]}  bxc5 {[%clk 0:00:16]} 34. Nc4 {[%clk 0:00:58]}  Ke7 {[%clk 0:00:16]} 35. Nxa5 {[%clk 0:00:57]}  Nf4 {[%clk 0:00:16]} 36. Nxc6+ {[%clk 0:00:55]}  Kd7 {[%clk 0:00:16]} 37. Bb5 {[%clk 0:00:55]}  Kc7 {[%clk 0:00:16]} 38. Na5 {[%clk 0:00:45]}  Bg6 {[%clk 0:00:15]} 39. Bf1 {[%clk 0:00:43]}  Rh1 {[%clk 0:00:14]} 40. Bd3 {[%clk 0:00:29]}  Rh3+ {[%clk 0:00:08]} 41. Kf2 {[%clk 0:00:29]}  Rh2+ {[%clk 0:00:07]} 42. Kf3 {[%clk 0:00:17]}  Rh3+ {[%clk 0:00:06]} 43. Kf2 {[%clk 0:00:18]}  Rh2+ {[%clk 0:00:07]} 44. Kg1 {[%clk 0:00:16]}  Rd2 {[%clk 0:00:06]} 45. Nc4 {[%clk 0:00:15]}  Rd1+ {[%clk 0:00:05]} 46. Kf2 {[%clk 0:00:10]}  Rh1 {[%clk 0:00:05]} 47. Na3 {[%clk 0:00:05]}  Rh2+ {[%clk 0:00:05]} 48. Kg1 {[%clk 0:00:05]}  Rg2+ {[%clk 0:00:05]} 49. Kf1 {[%clk 0:00:05]}  Rxg4 {[%clk 0:00:05]} 50. Nb5+ {[%clk 0:00:04]}  Kd7 {[%clk 0:00:05]} 51. Bc4 {[%clk 0:00:04]}  Rh4 {[%clk 0:00:05]} 52. a5 {[%clk 0:00:04]}  Rh1+ {[%clk 0:00:05]} 53. Kf2 {[%clk 0:00:04]}  Bh5 {[%clk 0:00:05]} 54. a6 {[%clk 0:00:04]}  Rh2+ {[%clk 0:00:05]} 55. Kf1 {[%clk 0:00:02]}  Rxc2 {[%clk 0:00:04]} 56. a7 {[%clk 0:00:02]}  Ra2 {[%clk 0:00:04]} 57. b4 {[%clk 0:00:02]}  cxb4 {[%clk 0:00:04]} 58. Bxa2 {[%clk 0:00:01]} 1-0


[Site "https://www.chess.com"]

[Event "Titled Tuesday Blitz December 20 Early 2022"]
[White "Sokolov, Ivan"]
[Black "VitorBronson"]
[WhiteFideId "14400030"]
[WhiteElo "2590"]
[BlackElo "2459"]
[Result "0-1"]
[Round "05"]
[TimeControl "180+2"]
[Date "2022.12.20"]
[WhiteClock "0:00:02"]
[BlackClock "0:00:28"]

1. b3 {[%clk 0:03:00]}  Nf6 {[%clk 0:02:59]} 2. Bb2 {[%clk 0:03:01]}  d5 {[%clk 0:02:59]} 3. e3 {[%clk 0:02:57]}  Bg4 {[%clk 0:02:56]} 4. Nf3 {[%clk 0:02:54]}  e6 {[%clk 0:02:56]} 5. d4 {[%clk 0:02:53]}  c6 {[%clk 0:02:55]} 6. Nbd2 {[%clk 0:02:40]}  Nbd7 {[%clk 0:02:55]} 7. Bd3 {[%clk 0:02:39]}  Bd6 {[%clk 0:02:55]} 8. c4 {[%clk 0:02:40]}  O-O {[%clk 0:02:51]} 9. Qc2 {[%clk 0:02:40]}  Bh5 {[%clk 0:02:49]} 10. Ne5 {[%clk 0:02:32]}  Bg6 {[%clk 0:02:48]} 11. Nxg6 {[%clk 0:02:22]}  fxg6 {[%clk 0:02:44]} 12. Nf3 {[%clk 0:01:43]}  Qe7 {[%clk 0:02:37]} 13. O-O-O {[%clk 0:01:15]}  c5 {[%clk 0:02:29]} 14. dxc5 {[%clk 0:01:02]}  Nxc5 {[%clk 0:02:28]} 15. Kb1 {[%clk 0:00:59]}  Nxd3 {[%clk 0:02:24]} 16. Qxd3 {[%clk 0:00:59]}  Ne4 {[%clk 0:02:02]} 17. Rhf1 {[%clk 0:00:49]}  Nc5 {[%clk 0:01:47]} 18. Qd4 {[%clk 0:00:50]}  Rf5 {[%clk 0:01:41]} 19. cxd5 {[%clk 0:00:36]}  Rxd5 {[%clk 0:01:39]} 20. Qc4 {[%clk 0:00:37]}  Rxd1+ {[%clk 0:01:36]} 21. Rxd1 {[%clk 0:00:37]}  a6 {[%clk 0:01:26]} 22. Qd4 {[%clk 0:00:28]}  Rd8 {[%clk 0:01:25]} 23. Rc1 {[%clk 0:00:23]}  Nd7 {[%clk 0:01:12]} 24. Rd1 {[%clk 0:00:21]}  Nf6 {[%clk 0:01:10]} 25. Qc4 {[%clk 0:00:17]}  h6 {[%clk 0:01:04]} 26. Nd4 {[%clk 0:00:16]}  Re8 {[%clk 0:01:00]} 27. Nxe6 {[%clk 0:00:14]}  Qxe6 {[%clk 0:00:58]} 28. Rxd6 {[%clk 0:00:15]}  Qxc4 {[%clk 0:00:58]} 29. bxc4 {[%clk 0:00:16]}  Ne4 {[%clk 0:00:59]} 30. Rb6 {[%clk 0:00:16]}  Re7 {[%clk 0:00:58]} 31. f3 {[%clk 0:00:15]}  Nd2+ {[%clk 0:00:57]} 32. Kc2 {[%clk 0:00:15]}  Nxc4 {[%clk 0:00:57]} 33. Rb3 {[%clk 0:00:16]}  Nxe3+ {[%clk 0:00:56]} 34. Kd3 {[%clk 0:00:14]}  Nxg2 {[%clk 0:00:57]} 35. Bc1 {[%clk 0:00:14]}  Ne1+ {[%clk 0:00:54]} 36. Kc4 {[%clk 0:00:14]}  b5+ {[%clk 0:00:53]} 37. Kd5 {[%clk 0:00:14]}  Rf7 {[%clk 0:00:52]} 38. f4 {[%clk 0:00:13]}  Ng2 {[%clk 0:00:51]} 39. Rf3 {[%clk 0:00:12]}  Nh4 {[%clk 0:00:50]} 40. Re3 {[%clk 0:00:11]}  Rxf4 {[%clk 0:00:42]} 41. Re8+ {[%clk 0:00:07]}  Rf8 {[%clk 0:00:42]} 42. Re6 {[%clk 0:00:07]}  Rf6 {[%clk 0:00:41]} 43. Re7 {[%clk 0:00:08]}  Nf5 {[%clk 0:00:40]} 44. Ra7 {[%clk 0:00:08]}  g5 {[%clk 0:00:40]} 45. Bb2 {[%clk 0:00:08]}  Rg6 {[%clk 0:00:40]} 46. Ke5 {[%clk 0:00:06]}  Ne3 {[%clk 0:00:39]} 47. Ke4 {[%clk 0:00:06]}  Nc4 {[%clk 0:00:39]} 48. Bd4 {[%clk 0:00:07]}  g4 {[%clk 0:00:38]} 49. Kf5 {[%clk 0:00:07]}  Kh7 {[%clk 0:00:38]} 50. Kf4 {[%clk 0:00:07]}  h5 {[%clk 0:00:38]} 51. Kg3 {[%clk 0:00:07]}  Nd2 {[%clk 0:00:34]} 52. Be5 {[%clk 0:00:04]}  Nf3 {[%clk 0:00:34]} 53. Bc3 {[%clk 0:00:04]}  h4+ {[%clk 0:00:34]} 54. Kg2 {[%clk 0:00:03]}  Ng5 {[%clk 0:00:31]} 55. Re7 {[%clk 0:00:02]}  Ne6 {[%clk 0:00:31]} 56. Be5 {[%clk 0:00:03]}  Nc5 {[%clk 0:00:26]} 57. Kf2 {[%clk 0:00:04]}  Nd3+ {[%clk 0:00:26]} 58. Ke3 {[%clk 0:00:04]}  Nxe5 {[%clk 0:00:27]} 59. Rxe5 {[%clk 0:00:05]}  g3 {[%clk 0:00:28]} 60. Rh5+ {[%clk 0:00:02]}  Kg8 {[%clk 0:00:28]} 61. h3 {[%clk 0:00:02]}  g2 {[%clk 0:00:28]} 0-1


[Site "https://www.chess.com"]

[Event "Titled Tuesday Blitz December 20 Early 2022"]
[White "Sovetov, Oleksandr"]
[Black "UnknownMagician"]
[WhiteFideId "34105786"]
[WhiteElo "1976"]
[BlackElo "2635"]
[Result "1-0"]
[Round "05"]
[TimeControl "180+2"]
[Date "2022.12.20"]
[WhiteClock "0:01:34"]
[BlackClock "0:00:36"]

1. Nf3 {[%clk 0:02:52]}  d5 {[%clk 0:02:58]} 2. e3 {[%clk 0:02:51]}  c6 {[%clk 0:02:58]} 3. c4 {[%clk 0:02:51]}  Nf6 {[%clk 0:02:58]} 4. Nc3 {[%clk 0:02:51]}  e6 {[%clk 0:02:54]} 5. b3 {[%clk 0:02:51]}  Nbd7 {[%clk 0:02:54]} 6. Bb2 {[%clk 0:02:51]}  Bd6 {[%clk 0:02:54]} 7. Qc2 {[%clk 0:02:52]}  Qe7 {[%clk 0:02:55]} 8. d4 {[%clk 0:02:50]}  O-O {[%clk 0:02:54]} 9. Be2 {[%clk 0:02:49]}  e5 {[%clk 0:02:53]} 10. cxd5 {[%clk 0:02:43]}  cxd5 {[%clk 0:02:51]} 11. dxe5 {[%clk 0:02:33]}  Nxe5 {[%clk 0:02:52]} 12. Nb5 {[%clk 0:02:33]}  Bb4+ {[%clk 0:02:48]} 13. Bc3 {[%clk 0:02:33]}  Nc6 {[%clk 0:02:35]} 14. Bxb4 {[%clk 0:02:30]}  Qxb4+ {[%clk 0:02:34]} 15. Qc3 {[%clk 0:02:27]}  Qe7 {[%clk 0:02:33]} 16. O-O {[%clk 0:02:23]}  Ne4 {[%clk 0:02:31]} 17. Qb2 {[%clk 0:02:23]}  Bg4 {[%clk 0:02:28]} 18. h3 {[%clk 0:02:19]}  Bh5 {[%clk 0:02:28]} 19. Rfd1 {[%clk 0:02:19]}  Rfd8 {[%clk 0:02:28]} 20. Rac1 {[%clk 0:02:18]}  Rac8 {[%clk 0:02:14]} 21. Nfd4 {[%clk 0:02:14]}  Bxe2 {[%clk 0:02:10]} 22. Nxe2 {[%clk 0:02:11]}  a6 {[%clk 0:02:07]} 23. Nbd4 {[%clk 0:02:08]}  Ne5 {[%clk 0:02:05]} 24. Rxc8 {[%clk 0:01:55]}  Rxc8 {[%clk 0:02:06]} 25. Nf4 {[%clk 0:01:55]}  Nc3 {[%clk 0:01:46]} 26. Rc1 {[%clk 0:01:44]}  Qc5 {[%clk 0:01:42]} 27. Nde2 {[%clk 0:01:35]}  Nxe2+ {[%clk 0:00:36]} 28. Nxe2 {[%clk 0:01:34]} 1-0


[Site "https://www.chess.com"]

[Event "Titled Tuesday Blitz December 20 Early 2022"]
[White "Steegersee"]
[Black "dirk_da_player"]
[WhiteElo "2425"]
[BlackElo "2339"]
[Result "1-0"]
[Round "05"]
[TimeControl "180+2"]
[Date "2022.12.20"]
[WhiteClock "0:00:55"]
[BlackClock "0:00:06"]

1. b3 {[%clk 0:02:51]}  Nf6 {[%clk 0:02:59]} 2. Bb2 {[%clk 0:02:52]}  d5 {[%clk 0:02:58]} 3. Nf3 {[%clk 0:02:53]}  c5 {[%clk 0:02:58]} 4. e3 {[%clk 0:02:54]}  g6 {[%clk 0:02:55]} 5. c4 {[%clk 0:02:53]}  e6 {[%clk 0:02:49]} 6. cxd5 {[%clk 0:02:49]}  exd5 {[%clk 0:02:49]} 7. Bb5+ {[%clk 0:02:47]}  Nc6 {[%clk 0:02:48]} 8. d4 {[%clk 0:02:43]}  Bg7 {[%clk 0:02:43]} 9. O-O {[%clk 0:02:42]}  cxd4 {[%clk 0:02:39]} 10. Nxd4 {[%clk 0:02:41]}  Bd7 {[%clk 0:02:39]} 11. Nc3 {[%clk 0:02:39]}  O-O {[%clk 0:02:38]} 12. Bxc6 {[%clk 0:02:37]}  bxc6 {[%clk 0:02:38]} 13. Na4 {[%clk 0:02:38]}  Ne4 {[%clk 0:02:32]} 14. Rc1 {[%clk 0:02:37]}  Rc8 {[%clk 0:02:06]} 15. b4 {[%clk 0:02:31]}  a5 {[%clk 0:01:56]} 16. a3 {[%clk 0:02:29]}  axb4 {[%clk 0:01:55]} 17. axb4 {[%clk 0:02:30]}  Qe7 {[%clk 0:01:39]} 18. Ba3 {[%clk 0:02:21]}  Ra8 {[%clk 0:01:16]} 19. Ra1 {[%clk 0:01:45]}  Rfb8 {[%clk 0:01:05]} 20. Qc2 {[%clk 0:01:42]}  Ra6 {[%clk 0:00:54]} 21. Nc5 {[%clk 0:01:36]}  Nxc5 {[%clk 0:00:48]} 22. bxc5 {[%clk 0:01:36]}  Rba8 {[%clk 0:00:46]} 23. Bb2 {[%clk 0:01:36]}  Ra5 {[%clk 0:00:42]} 24. Rxa5 {[%clk 0:01:32]}  Rxa5 {[%clk 0:00:41]} 25. Rc1 {[%clk 0:01:33]}  Bf8 {[%clk 0:00:39]} 26. Nb3 {[%clk 0:01:31]}  Rb5 {[%clk 0:00:37]} 27. Bd4 {[%clk 0:01:29]}  Qe4 {[%clk 0:00:30]} 28. Qc3 {[%clk 0:01:27]}  Be6 {[%clk 0:00:22]} 29. Nd2 {[%clk 0:01:24]}  Qg4 {[%clk 0:00:19]} 30. f3 {[%clk 0:01:19]}  Qh5 {[%clk 0:00:18]} 31. Rb1 {[%clk 0:01:12]}  Rxb1+ {[%clk 0:00:16]} 32. Nxb1 {[%clk 0:01:13]}  Qg5 {[%clk 0:00:14]} 33. Na3 {[%clk 0:01:06]}  Bh3 {[%clk 0:00:11]} 34. Qd2 {[%clk 0:01:04]}  h5 {[%clk 0:00:08]} 35. Nc2 {[%clk 0:00:58]}  Bf5 {[%clk 0:00:07]} 36. Nb4 {[%clk 0:00:56]}  Qf6 {[%clk 0:00:06]} 37. Bxf6 {[%clk 0:00:55]} 1-0


[Site "https://www.chess.com"]

[Event "Titled Tuesday Blitz December 20 Early 2022"]
[White "Sunny_Star"]
[Black "Nyambe, Maketo"]
[BlackFideId "8700915"]
[WhiteElo "2241"]
[BlackElo "2091"]
[Result "0-1"]
[Round "05"]
[TimeControl "180+2"]
[Date "2022.12.20"]
[WhiteClock "0:00:00"]
[BlackClock "0:00:53"]

1. e4 {[%clk 0:02:54]}  c5 {[%clk 0:02:57]} 2. Nf3 {[%clk 0:02:54]}  d6 {[%clk 0:02:58]} 3. d4 {[%clk 0:02:54]}  cxd4 {[%clk 0:02:59]} 4. Nxd4 {[%clk 0:02:53]}  Nf6 {[%clk 0:02:59]} 5. Nc3 {[%clk 0:02:54]}  a6 {[%clk 0:02:59]} 6. a4 {[%clk 0:02:54]}  e6 {[%clk 0:02:52]} 7. Be2 {[%clk 0:02:40]}  Be7 {[%clk 0:02:48]} 8. O-O {[%clk 0:02:31]}  O-O {[%clk 0:02:48]} 9. Be3 {[%clk 0:02:23]}  Qc7 {[%clk 0:02:48]} 10. f4 {[%clk 0:02:02]}  b6 {[%clk 0:02:35]} 11. Bf3 {[%clk 0:01:48]}  Bb7 {[%clk 0:02:35]} 12. Nb3 {[%clk 0:01:46]}  Nbd7 {[%clk 0:02:34]} 13. Qe2 {[%clk 0:01:35]}  Rac8 {[%clk 0:02:24]} 14. a5 {[%clk 0:01:06]}  b5 {[%clk 0:02:20]} 15. Bd4 {[%clk 0:00:18]}  b4 {[%clk 0:02:19]} 16. e5 {[%clk 0:00:17]}  bxc3 {[%clk 0:01:55]} 17. exf6 {[%clk 0:00:17]}  Bxf6 {[%clk 0:01:56]} 18. bxc3 {[%clk 0:00:10]}  Rfe8 {[%clk 0:01:49]} 19. Bxb7 {[%clk 0:00:09]}  Qxb7 {[%clk 0:01:50]} 20. Rf3 {[%clk 0:00:08]}  e5 {[%clk 0:01:48]} 21. fxe5 {[%clk 0:00:06]}  dxe5 {[%clk 0:01:49]} 22. Bf2 {[%clk 0:00:04]}  e4 {[%clk 0:01:48]} 23. Rg3 {[%clk 0:00:04]}  Rxc3 {[%clk 0:01:45]} 24. Be3 {[%clk 0:00:03]}  Rxb3 {[%clk 0:01:42]} 25. Rf1 {[%clk 0:00:01]}  Ba1 {[%clk 0:01:43]} 26. cxb3 {[%clk 0:00:01]}  Be5 {[%clk 0:01:41]} 27. Qg4 {[%clk 0:00:02]}  Bxg3 {[%clk 0:01:38]} 28. Qxg3 {[%clk 0:00:02]}  Nf8 {[%clk 0:01:37]} 29. Qf2 {[%clk 0:00:03]}  Ng6 {[%clk 0:01:35]} 30. Bb6 {[%clk 0:00:03]}  h5 {[%clk 0:01:32]} 31. Qe2 {[%clk 0:00:03]}  h4 {[%clk 0:01:31]} 32. b4 {[%clk 0:00:03]}  Re5 {[%clk 0:01:29]} 33. Qc4 {[%clk 0:00:02]}  e3 {[%clk 0:01:25]} 34. Bd4 {[%clk 0:00:01]}  Rg5 {[%clk 0:01:24]} 35. Qc2 {[%clk 0:00:01]}  Qe7 {[%clk 0:00:58]} 36. Bc5 {[%clk 0:00:01]}  Qe6 {[%clk 0:00:54]} 37. Re1 {[%clk 0:00:01]}  Re5 {[%clk 0:00:54]} 38. Re2 {[%clk 0:00:00]}  Nf4 {[%clk 0:00:54]} 39. Re1 {[%clk 0:00:00]}  e2 {[%clk 0:00:53]} 0-1


[Site "https://www.chess.com"]

[Event "Titled Tuesday Blitz December 20 Early 2022"]
[White "Talcrifice"]
[Black "Gnechko_Ruslan"]
[WhiteElo "2621"]
[BlackElo "2448"]
[Result "1-0"]
[Round "05"]
[TimeControl "180+2"]
[Date "2022.12.20"]
[WhiteClock "0:01:04"]
[BlackClock "0:00:03"]

1. d4 {[%clk 0:02:56]}  Nf6 {[%clk 0:02:59]} 2. c4 {[%clk 0:02:51]}  e6 {[%clk 0:02:58]} 3. g3 {[%clk 0:02:51]}  d5 {[%clk 0:02:57]} 4. Bg2 {[%clk 0:02:50]}  Be7 {[%clk 0:02:57]} 5. Nf3 {[%clk 0:02:50]}  O-O {[%clk 0:02:56]} 6. O-O {[%clk 0:02:50]}  dxc4 {[%clk 0:02:57]} 7. Qc2 {[%clk 0:02:50]}  a6 {[%clk 0:02:56]} 8. a4 {[%clk 0:02:50]}  Bd7 {[%clk 0:02:56]} 9. Qxc4 {[%clk 0:02:51]}  Bc6 {[%clk 0:02:56]} 10. Bg5 {[%clk 0:02:51]}  Bd5 {[%clk 0:02:55]} 11. Qc2 {[%clk 0:02:51]}  Be4 {[%clk 0:02:55]} 12. Qc1 {[%clk 0:02:51]}  c5 {[%clk 0:02:49]} 13. dxc5 {[%clk 0:02:44]}  Nbd7 {[%clk 0:02:49]} 14. Rd1 {[%clk 0:02:28]}  Rc8 {[%clk 0:02:29]} 15. b4 {[%clk 0:02:11]}  a5 {[%clk 0:02:27]} 16. Nbd2 {[%clk 0:02:12]}  axb4 {[%clk 0:02:21]} 17. Bxf6 {[%clk 0:02:09]}  Bxf6 {[%clk 0:01:46]} 18. Nxe4 {[%clk 0:02:08]}  Bxa1 {[%clk 0:01:45]} 19. Qxa1 {[%clk 0:02:09]}  Qc7 {[%clk 0:01:42]} 20. Qb2 {[%clk 0:02:04]}  Nxc5 {[%clk 0:01:39]} 21. Qxb4 {[%clk 0:02:03]}  Nxe4 {[%clk 0:01:33]} 22. Qxe4 {[%clk 0:02:04]}  Rfd8 {[%clk 0:01:33]} 23. Rb1 {[%clk 0:01:58]}  h6 {[%clk 0:01:27]} 24. h4 {[%clk 0:01:56]}  b6 {[%clk 0:01:23]} 25. Ne5 {[%clk 0:01:50]}  Rd5 {[%clk 0:01:18]} 26. Nd3 {[%clk 0:01:44]}  Ra5 {[%clk 0:00:57]} 27. Rb4 {[%clk 0:01:38]}  Qd6 {[%clk 0:00:32]} 28. Bf3 {[%clk 0:01:32]}  f5 {[%clk 0:00:26]} 29. Qd4 {[%clk 0:01:31]}  Qxd4 {[%clk 0:00:21]} 30. Rxd4 {[%clk 0:01:32]}  Kf7 {[%clk 0:00:22]} 31. Rb4 {[%clk 0:01:30]}  Rb8 {[%clk 0:00:16]} 32. e4 {[%clk 0:01:27]}  g6 {[%clk 0:00:13]} 33. h5 {[%clk 0:01:23]}  gxh5 {[%clk 0:00:11]} 34. Bxh5+ {[%clk 0:01:21]}  Kf6 {[%clk 0:00:12]} 35. Bf3 {[%clk 0:01:22]}  fxe4 {[%clk 0:00:11]} 36. Bxe4 {[%clk 0:01:21]}  Ra7 {[%clk 0:00:05]} 37. Kg2 {[%clk 0:01:16]}  Ra6 {[%clk 0:00:05]} 38. Bf3 {[%clk 0:01:11]}  Ra5 {[%clk 0:00:04]} 39. Rh4 {[%clk 0:01:08]}  Kg6 {[%clk 0:00:03]} 40. Nf4+ {[%clk 0:01:04]} 1-0


[Site "https://www.chess.com"]

[Event "Titled Tuesday Blitz December 20 Early 2022"]
[White "The_Machine04"]
[Black "bardiya_Daneshvar"]
[WhiteElo "2652"]
[BlackElo "2903"]
[Result "0-1"]
[Round "05"]
[TimeControl "180+2"]
[Date "2022.12.20"]
[WhiteClock "0:00:03"]
[BlackClock "0:00:10"]

1. d4 {[%clk 0:03:00]}  Nf6 {[%clk 0:02:59]} 2. Nf3 {[%clk 0:02:59]}  g6 {[%clk 0:02:59]} 3. Nbd2 {[%clk 0:02:58]}  Bg7 {[%clk 0:02:57]} 4. e4 {[%clk 0:02:58]}  d6 {[%clk 0:02:57]} 5. Bc4 {[%clk 0:02:57]}  O-O {[%clk 0:02:57]} 6. O-O {[%clk 0:02:57]}  Nc6 {[%clk 0:02:54]} 7. c3 {[%clk 0:02:57]}  e5 {[%clk 0:02:54]} 8. dxe5 {[%clk 0:02:58]}  Nxe5 {[%clk 0:02:54]} 9. Nxe5 {[%clk 0:02:58]}  dxe5 {[%clk 0:02:55]} 10. a4 {[%clk 0:02:58]}  Qe7 {[%clk 0:02:54]} 11. b3 {[%clk 0:02:59]}  Rd8 {[%clk 0:02:54]} 12. Qe2 {[%clk 0:02:59]}  Nh5 {[%clk 0:02:53]} 13. g3 {[%clk 0:02:59]}  Be6 {[%clk 0:02:47]} 14. Ba3 {[%clk 0:02:55]}  Qd7 {[%clk 0:02:45]} 15. Rfd1 {[%clk 0:02:51]}  Bf8 {[%clk 0:02:35]} 16. Bxf8 {[%clk 0:02:49]}  Kxf8 {[%clk 0:02:36]} 17. Nf3 {[%clk 0:02:46]}  Bxc4 {[%clk 0:02:26]} 18. Qxc4 {[%clk 0:02:46]}  Qe7 {[%clk 0:02:22]} 19. a5 {[%clk 0:02:34]}  a6 {[%clk 0:02:18]} 20. Rd5 {[%clk 0:02:30]}  f6 {[%clk 0:02:08]} 21. Rad1 {[%clk 0:02:27]}  c6 {[%clk 0:02:08]} 22. Rxd8+ {[%clk 0:02:04]}  Rxd8 {[%clk 0:02:09]} 23. Rxd8+ {[%clk 0:02:04]}  Qxd8 {[%clk 0:02:10]} 24. Qc5+ {[%clk 0:01:49]}  Qe7 {[%clk 0:02:05]} 25. Qa7 {[%clk 0:01:48]}  Ng7 {[%clk 0:02:00]} 26. Qb8+ {[%clk 0:01:46]}  Ne8 {[%clk 0:01:54]} 27. Nd2 {[%clk 0:01:41]}  Qc7 {[%clk 0:01:54]} 28. Qa8 {[%clk 0:01:30]}  Qxa5 {[%clk 0:01:45]} 29. Qxb7 {[%clk 0:01:29]}  Qxc3 {[%clk 0:01:46]} 30. Nc4 {[%clk 0:01:29]}  Qe1+ {[%clk 0:01:46]} 31. Kg2 {[%clk 0:01:26]}  Qxe4+ {[%clk 0:01:47]} 32. Kg1 {[%clk 0:01:26]}  h5 {[%clk 0:01:36]} 33. Qxa6 {[%clk 0:01:12]}  h4 {[%clk 0:01:28]} 34. Qc8 {[%clk 0:01:05]}  Qb1+ {[%clk 0:01:06]} 35. Kg2 {[%clk 0:01:00]}  Qxb3 {[%clk 0:01:06]} 36. Qxc6 {[%clk 0:00:52]}  Qd3 {[%clk 0:00:59]} 37. Qe6 {[%clk 0:00:41]}  h3+ {[%clk 0:00:51]} 38. Kxh3 {[%clk 0:00:20]}  Qf1+ {[%clk 0:00:51]} 39. Kg4 {[%clk 0:00:13]}  Qxf2 {[%clk 0:00:49]} 40. Nd6 {[%clk 0:00:09]}  Qe2+ {[%clk 0:00:23]} 41. Kh3 {[%clk 0:00:08]}  Qf1+ {[%clk 0:00:08]} 42. Kh4 {[%clk 0:00:06]}  g5+ {[%clk 0:00:08]} 43. Kg4 {[%clk 0:00:05]}  Qd1+ {[%clk 0:00:08]} 44. Kh3 {[%clk 0:00:02]}  Qxd6 {[%clk 0:00:08]} 45. Qf5 {[%clk 0:00:02]}  Ng7 {[%clk 0:00:08]} 46. Qh7 {[%clk 0:00:01]}  Qe6+ {[%clk 0:00:08]} 47. Kg2 {[%clk 0:00:02]}  e4 {[%clk 0:00:08]} 48. Qh8+ {[%clk 0:00:02]}  Kf7 {[%clk 0:00:09]} 49. Qh7 {[%clk 0:00:03]}  e3 {[%clk 0:00:09]} 50. Qd3 {[%clk 0:00:03]}  e2 {[%clk 0:00:10]} 0-1


[Site "https://www.chess.com"]

[Event "Titled Tuesday Blitz December 20 Early 2022"]
[White "The_filthy"]
[Black "Emily_Dawn"]
[WhiteElo "2377"]
[BlackElo "1878"]
[Result "1-0"]
[Round "05"]
[TimeControl "180+2"]
[Date "2022.12.20"]
[WhiteClock "0:00:24"]
[BlackClock "0:00:07"]

1. e4 {[%clk 0:03:00]}  c5 {[%clk 0:02:57]} 2. d4 {[%clk 0:03:01]}  cxd4 {[%clk 0:02:57]} 3. c3 {[%clk 0:03:01]}  dxc3 {[%clk 0:02:57]} 4. Nxc3 {[%clk 0:03:02]}  Nc6 {[%clk 0:02:57]} 5. Nf3 {[%clk 0:03:03]}  d6 {[%clk 0:02:56]} 6. Bc4 {[%clk 0:03:03]}  a6 {[%clk 0:02:56]} 7. O-O {[%clk 0:03:03]}  Nf6 {[%clk 0:02:56]} 8. Qe2 {[%clk 0:03:03]}  Bg4 {[%clk 0:02:55]} 9. h3 {[%clk 0:02:59]}  Bxf3 {[%clk 0:02:53]} 10. Qxf3 {[%clk 0:02:59]}  Ne5 {[%clk 0:02:52]} 11. Qe2 {[%clk 0:02:59]}  Nxc4 {[%clk 0:02:49]} 12. Qxc4 {[%clk 0:03:00]}  Rc8 {[%clk 0:02:48]} 13. Qd3 {[%clk 0:03:00]}  g6 {[%clk 0:02:42]} 14. Rd1 {[%clk 0:02:58]}  Bg7 {[%clk 0:02:40]} 15. Qe2 {[%clk 0:02:58]}  Qa5 {[%clk 0:02:34]} 16. Bd2 {[%clk 0:02:53]}  O-O {[%clk 0:02:11]} 17. Nd5 {[%clk 0:02:49]}  Qd8 {[%clk 0:02:10]} 18. Bg5 {[%clk 0:02:44]}  Nxd5 {[%clk 0:02:05]} 19. exd5 {[%clk 0:02:44]}  Re8 {[%clk 0:02:02]} 20. Rac1 {[%clk 0:02:39]}  Rxc1 {[%clk 0:01:47]} 21. Rxc1 {[%clk 0:02:38]}  Qb6 {[%clk 0:01:37]} 22. h4 {[%clk 0:02:14]}  h6 {[%clk 0:01:35]} 23. Bf4 {[%clk 0:02:10]}  Qd4 {[%clk 0:01:18]} 24. Bxd6 {[%clk 0:01:56]}  Qxd5 {[%clk 0:01:08]} 25. Bg3 {[%clk 0:01:56]}  Qxa2 {[%clk 0:01:04]} 26. Rc7 {[%clk 0:01:55]}  Qxb2 {[%clk 0:01:01]} 27. Qe4 {[%clk 0:01:47]}  Bf6 {[%clk 0:00:45]} 28. Rxb7 {[%clk 0:01:44]}  Qa1+ {[%clk 0:00:45]} 29. Kh2 {[%clk 0:01:43]}  a5 {[%clk 0:00:39]} 30. h5 {[%clk 0:01:39]}  Qd4 {[%clk 0:00:34]} 31. Qc6 {[%clk 0:01:35]}  Rd8 {[%clk 0:00:20]} 32. hxg6 {[%clk 0:01:35]}  fxg6 {[%clk 0:00:20]} 33. Qe6+ {[%clk 0:01:33]}  Kg7 {[%clk 0:00:20]} 34. Rxe7+ {[%clk 0:01:22]}  Bxe7 {[%clk 0:00:19]} 35. Qxe7+ {[%clk 0:01:08]}  Kg8 {[%clk 0:00:20]} 36. Qe6+ {[%clk 0:00:56]}  Kf8 {[%clk 0:00:20]} 37. Qxg6 {[%clk 0:00:52]}  a4 {[%clk 0:00:19]} 38. Qxh6+ {[%clk 0:00:49]}  Qg7 {[%clk 0:00:18]} 39. Qh4 {[%clk 0:00:35]}  Ra8 {[%clk 0:00:15]} 40. Bf4 {[%clk 0:00:26]}  a3 {[%clk 0:00:14]} 41. Bh6 {[%clk 0:00:26]}  Qxh6 {[%clk 0:00:12]} 42. Qxh6+ {[%clk 0:00:26]}  Kf7 {[%clk 0:00:12]} 43. Qh7+ {[%clk 0:00:26]}  Kf6 {[%clk 0:00:11]} 44. Qh6+ {[%clk 0:00:26]}  Kf5 {[%clk 0:00:09]} 45. g4+ {[%clk 0:00:24]}  Ke4 {[%clk 0:00:07]} 46. Qc6+ {[%clk 0:00:24]} 1-0


[Site "https://www.chess.com"]